[Event "Early-Titled-Tuesday-Blitz-February-06-2024"]
[Site "Chess.com"]
[Date "2024.02.06"]
[Round "7"]
[White "LyonBeast"]
[Black "AnishOnYoutube"]
[Result "1-0"]
[WhiteElo "3158"]
[BlackElo "3008"]
[TimeControl "180+1"]
[EndTime "9:17:38 PST"]
[Termination "LyonBeast won by resignation"]

1. e4 {[%clk 0:02:56.1]} 1... e5 {[%clk 0:03:00.3]} 2. Nf3 {[%clk 0:02:55.8]}
2... Nc6 {[%clk 0:03:00.9]} 3. Bb5 {[%clk 0:02:56.3]} 3... Nf6 {[%clk
0:03:01.4]} 4. O-O {[%clk 0:02:56.1]} 4... Nxe4 {[%clk 0:03:01.8]} 5. d4 {[%clk
0:02:56.8]} 5... Nd6 {[%clk 0:03:01.9]} 6. Bxc6 {[%clk 0:02:57.5]} 6... dxc6
{[%clk 0:03:02.7]} 7. dxe5 {[%clk 0:02:58.2]} 7... Nf5 {[%clk 0:03:03.5]} 8.
Qxd8+ {[%clk 0:02:58.7]} 8... Kxd8 {[%clk 0:03:04.3]} 9. Nc3 {[%clk 0:02:59.4]}
9... Ke8 {[%clk 0:03:04.6]} 10. Bf4 {[%clk 0:02:58.8]} 10... h6 {[%clk
0:03:00.1]} 11. Rad1 {[%clk 0:02:49.9]} 11... g5 {[%clk 0:02:48.9]} 12. Bc1
{[%clk 0:02:49.7]} 12... Be7 {[%clk 0:02:47]} 13. Ne4 {[%clk 0:02:46.3]} 13...
Kf8 {[%clk 0:02:43.3]} 14. Rfe1 {[%clk 0:02:38.6]} 14... Be6 {[%clk 0:02:40.6]}
15. Nf6 {[%clk 0:02:33.8]} 15... Rd8 {[%clk 0:02:21.7]} 16. g4 {[%clk
0:02:29.9]} 16... Ng7 {[%clk 0:02:18.5]} 17. Be3 {[%clk 0:02:16.2]} 17... Rxd1
{[%clk 0:01:53.6]} 18. Rxd1 {[%clk 0:02:17.1]} 18... c5 {[%clk 0:01:54]} 19. h3
{[%clk 0:02:12.6]} 19... b6 {[%clk 0:01:49.8]} 20. a4 {[%clk 0:02:01.6]} 20...
Ne8 {[%clk 0:01:41.4]} 21. Nd5 {[%clk 0:01:56.7]} 21... Bxd5 {[%clk 0:01:40.6]}
22. Rxd5 {[%clk 0:01:56.6]} 22... Ng7 {[%clk 0:01:41]} 23. Nd2 {[%clk 0:01:47]}
23... Ne6 {[%clk 0:01:36.1]} 24. Ne4 {[%clk 0:01:47.4]} 24... Kg7 {[%clk
0:01:29.6]} 25. Kf1 {[%clk 0:01:43]} 25... h5 {[%clk 0:01:08]} 26. Rd7 {[%clk
0:01:32.9]} 26... Kf8 {[%clk 0:01:08.1]} 27. Ng3 {[%clk 0:01:32.9]} 27... Ke8
{[%clk 0:01:03]} 28. Rd2 {[%clk 0:01:31.4]} 28... hxg4 {[%clk 0:01:03]} 29. hxg4
{[%clk 0:01:32.3]} 29... f6 {[%clk 0:00:55.4]} 30. exf6 {[%clk 0:01:29.1]} 30...
Bxf6 {[%clk 0:00:55.9]} 31. c3 {[%clk 0:01:28.9]} 31... a6 {[%clk 0:00:53.6]}
32. Kg2 {[%clk 0:01:24.6]} 32... Be5 {[%clk 0:00:48.1]} 33. Rd5 {[%clk
0:01:10.3]} 33... Bxg3 {[%clk 0:00:20.6]} 34. Kxg3 {[%clk 0:01:11.2]} 34... Rg8
{[%clk 0:00:20.5]} 35. Kf3 {[%clk 0:01:07.7]} 35... Ke7 {[%clk 0:00:20.9]} 36.
Ke4 {[%clk 0:01:07.5]} 36... c6 {[%clk 0:00:20.6]} 37. Rd1 {[%clk 0:00:51.3]}
37... Kf6 {[%clk 0:00:20.1]} 38. Rd6 {[%clk 0:00:50.4]} 38... Rc8 {[%clk
0:00:16.6]} 39. Bxg5+ {[%clk 0:00:45.2]} 39... Kxg5 {[%clk 0:00:17]} 40. Rxe6
{[%clk 0:00:45.6]} 40... Kxg4 {[%clk 0:00:17.7]} 41. f4 {[%clk 0:00:43.6]} 41...
a5 {[%clk 0:00:15.3]} 42. f5 {[%clk 0:00:42.8]} 42... Kg5 {[%clk 0:00:14.6]} 43.
Ke5 {[%clk 0:00:42.8]} 43... b5 {[%clk 0:00:14.2]} 44. Rg6+ {[%clk 0:00:38.2]}
44... Kh5 {[%clk 0:00:14.8]} 45. Rg2 {[%clk 0:00:37.2]} 45... bxa4 {[%clk
0:00:15.4]} 46. f6 {[%clk 0:00:36.7]} 46... Re8+ {[%clk 0:00:12.5]} 47. Kf5
{[%clk 0:00:36.4]} 1-0

[Event "Early-Titled-Tuesday-Blitz-February-06-2024"]
[Site "Chess.com"]
[Date "2024.02.06"]
[Round "7"]
[White "Ruchess27"]
[Black "SahibSinghKnight"]
[Result "0-1"]
[WhiteElo "2452"]
[BlackElo "2644"]
[TimeControl "180+1"]
[EndTime "9:17:40 PST"]
[Termination "SahibSinghKnight won by checkmate"]

1. d4 {[%clk 0:03:00.9]} 1... d5 {[%clk 0:02:57.4]} 2. c4 {[%clk 0:03:01.4]}
2... e6 {[%clk 0:02:54.8]} 3. Nf3 {[%clk 0:03:01.6]} 3... c6 {[%clk 0:02:54.8]}
4. e3 {[%clk 0:02:56.1]} 4... Bd6 {[%clk 0:02:54.3]} 5. Nc3 {[%clk 0:02:55.9]}
5... f5 {[%clk 0:02:54.3]} 6. Bd3 {[%clk 0:02:54.6]} 6... Nf6 {[%clk 0:02:54.4]}
7. O-O {[%clk 0:02:55]} 7... O-O {[%clk 0:02:54.6]} 8. Ne5 {[%clk 0:02:49.6]}
8... Bxe5 {[%clk 0:02:48.6]} 9. dxe5 {[%clk 0:02:49.6]} 9... Ng4 {[%clk
0:02:49.5]} 10. f4 {[%clk 0:02:42.8]} 10... d4 {[%clk 0:02:49.7]} 11. Ne2 {[%clk
0:02:28.9]} 11... dxe3 {[%clk 0:02:45.9]} 12. Qb3 {[%clk 0:02:04.4]} 12... Na6
{[%clk 0:02:39.8]} 13. Bc2 {[%clk 0:01:56.5]} 13... b5 {[%clk 0:02:17.3]} 14.
cxb5 {[%clk 0:01:47.4]} 14... Rb8 {[%clk 0:02:08.5]} 15. a4 {[%clk 0:01:22.2]}
15... cxb5 {[%clk 0:02:05.2]} 16. axb5 {[%clk 0:01:23.1]} 16... Nc7 {[%clk
0:02:05.4]} 17. h3 {[%clk 0:01:15.8]} 17... Rxb5 {[%clk 0:02:04.2]} 18. Qc4
{[%clk 0:01:03.7]} 18... Nh6 {[%clk 0:01:31.8]} 19. Rxa7 {[%clk 0:01:00.7]}
19... Bb7 {[%clk 0:01:26.6]} 20. Nd4 {[%clk 0:00:39.6]} 20... Rb6 {[%clk
0:00:48.9]} 21. Bxe3 {[%clk 0:00:38.6]} 21... Nd5 {[%clk 0:00:46.4]} 22. Bf2
{[%clk 0:00:21.7]} 22... Rb4 {[%clk 0:00:39]} 23. Qc5 {[%clk 0:00:15.2]} 23...
Qc8 {[%clk 0:00:29.5]} 24. Qxc8 {[%clk 0:00:11.1]} 24... Rxc8 {[%clk 0:00:28.9]}
25. Bd3 {[%clk 0:00:05.7]} 25... Nxf4 {[%clk 0:00:28.8]} 26. Bb1 {[%clk
0:00:04.3]} 26... Bxg2 {[%clk 0:00:28.3]} 27. Rd1 {[%clk 0:00:03.3]} 27... Bd5
{[%clk 0:00:27.5]} 28. Kh2 {[%clk 0:00:01.5]} 28... Rxb2 {[%clk 0:00:27.1]} 29.
Kg3 {[%clk 0:00:01.5]} 29... Rc3+ {[%clk 0:00:26.7]} 30. Kxf4 {[%clk 0:00:01.7]}
30... Rxf2+ {[%clk 0:00:26.8]} 31. Kg5 {[%clk 0:00:01.7]} 31... Nf7+ {[%clk
0:00:25.7]} 32. Kh4 {[%clk 0:00:01.4]} 32... g5+ {[%clk 0:00:25.3]} 33. Kh5
{[%clk 0:00:01.8]} 33... Rxh3# {[%clk 0:00:25.8]} 0-1

[Event "Early-Titled-Tuesday-Blitz-February-06-2024"]
[Site "Chess.com"]
[Date "2024.02.06"]
[Round "7"]
[White "Kildepiotr"]
[Black "Herzog2012"]
[Result "1-0"]
[WhiteElo "2685"]
[BlackElo "2527"]
[TimeControl "180+1"]
[EndTime "9:17:41 PST"]
[Termination "Kildepiotr won on time"]

1. Nf3 {[%clk 0:02:58]} 1... Nf6 {[%clk 0:02:59.6]} 2. g3 {[%clk 0:02:58.3]}
2... b5 {[%clk 0:02:59.3]} 3. Bg2 {[%clk 0:02:58.8]} 3... Bb7 {[%clk 0:02:58.9]}
4. O-O {[%clk 0:02:59.5]} 4... e6 {[%clk 0:02:59.2]} 5. d3 {[%clk 0:02:57.7]}
5... c5 {[%clk 0:02:58.6]} 6. e4 {[%clk 0:02:57]} 6... d6 {[%clk 0:02:58.6]} 7.
a4 {[%clk 0:02:57.3]} 7... a6 {[%clk 0:02:57.3]} 8. Na3 {[%clk 0:02:56.4]} 8...
b4 {[%clk 0:02:46.7]} 9. Nc4 {[%clk 0:02:56.5]} 9... Nbd7 {[%clk 0:02:42.6]} 10.
a5 {[%clk 0:02:56]} 10... Be7 {[%clk 0:02:42.3]} 11. b3 {[%clk 0:02:50.4]} 11...
O-O {[%clk 0:02:40.9]} 12. Bb2 {[%clk 0:02:50.5]} 12... Qc7 {[%clk 0:02:33.3]}
13. e5 {[%clk 0:02:47.2]} 13... dxe5 {[%clk 0:02:29.6]} 14. Nfxe5 {[%clk
0:02:48.1]} 14... Bxg2 {[%clk 0:02:29.1]} 15. Kxg2 {[%clk 0:02:49]} 15... Nxe5
{[%clk 0:02:24.3]} 16. Bxe5 {[%clk 0:02:48.8]} 16... Qc6+ {[%clk 0:02:20.8]} 17.
Qf3 {[%clk 0:02:48.8]} 17... Nd5 {[%clk 0:02:21.1]} 18. h4 {[%clk 0:02:43.6]}
18... f6 {[%clk 0:01:47.3]} 19. Bb2 {[%clk 0:02:42.2]} 19... e5 {[%clk 0:01:47]}
20. h5 {[%clk 0:02:37.9]} 20... Rac8 {[%clk 0:01:37.7]} 21. Rae1 {[%clk
0:02:33.7]} 21... Rfe8 {[%clk 0:01:36.1]} 22. Kg1 {[%clk 0:02:24.5]} 22... Bf8
{[%clk 0:01:32.1]} 23. Re2 {[%clk 0:02:07.5]} 23... g6 {[%clk 0:01:23.1]} 24.
Rfe1 {[%clk 0:02:00.8]} 24... Nc3 {[%clk 0:01:16.9]} 25. Re3 {[%clk 0:01:58.6]}
25... Nd5 {[%clk 0:01:01.2]} 26. Re4 {[%clk 0:01:42.7]} 26... Bg7 {[%clk
0:00:58.5]} 27. hxg6 {[%clk 0:01:39.9]} 27... hxg6 {[%clk 0:00:59.4]} 28. Rh4
{[%clk 0:01:39.2]} 28... f5 {[%clk 0:00:22.9]} 29. Bxe5 {[%clk 0:01:32.5]} 29...
Ne7 {[%clk 0:00:12.7]} 30. Qf4 {[%clk 0:01:19.7]} 30... Nd5 {[%clk 0:00:06.8]}
31. Qg5 {[%clk 0:01:06.4]} 31... Re6 {[%clk 0:00:06.6]} 32. f4 {[%clk
0:00:58.2]} 32... Rce8 {[%clk 0:00:05.9]} 33. Rh2 {[%clk 0:00:51.5]} 33... Qb7
{[%clk 0:00:03.7]} 34. Qh4 {[%clk 0:00:43.8]} 34... Kf7 {[%clk 0:00:02.7]} 35.
Qh7 {[%clk 0:00:42.1]} 35... Rg8 {[%clk 0:00:02.7]} 36. Rhe2 {[%clk 0:00:39.3]}
36... Qe7 {[%clk 0:00:01.3]} 37. Qh4 {[%clk 0:00:34.1]} 37... Qxh4 {[%clk
0:00:01.3]} 38. gxh4 {[%clk 0:00:34.3]} 38... Bxe5 {[%clk 0:00:01.2]} 39. Nxe5+
{[%clk 0:00:32.6]} 39... Kf6 {[%clk 0:00:01.3]} 40. Nd7+ {[%clk 0:00:32.3]} 1-0

[Event "Early-Titled-Tuesday-Blitz-February-06-2024"]
[Site "Chess.com"]
[Date "2024.02.06"]
[Round "7"]
[White "ansko1999"]
[Black "HeroWilczek"]
[Result "1-0"]
[WhiteElo "2672"]
[BlackElo "2482"]
[TimeControl "180+1"]
[EndTime "9:17:43 PST"]
[Termination "ansko1999 won by resignation"]

1. d4 {[%clk 0:03:00.9]} 1... Nf6 {[%clk 0:02:59.6]} 2. Bg5 {[%clk 0:03:00.9]}
2... d5 {[%clk 0:02:59.3]} 3. e3 {[%clk 0:03:00]} 3... e6 {[%clk 0:02:59]} 4.
Nd2 {[%clk 0:02:58.4]} 4... c5 {[%clk 0:02:57.3]} 5. c3 {[%clk 0:02:57.7]} 5...
Nc6 {[%clk 0:02:57.7]} 6. f4 {[%clk 0:02:49.7]} 6... h6 {[%clk 0:02:44.8]} 7.
Bxf6 {[%clk 0:02:45.1]} 7... Qxf6 {[%clk 0:02:45.7]} 8. Ngf3 {[%clk 0:02:44.2]}
8... g5 {[%clk 0:02:43.7]} 9. g3 {[%clk 0:02:33.2]} 9... gxf4 {[%clk 0:02:39.2]}
10. gxf4 {[%clk 0:02:31]} 10... Be7 {[%clk 0:02:35.6]} 11. Rg1 {[%clk
0:02:25.5]} 11... Bd7 {[%clk 0:02:34.1]} 12. Qc2 {[%clk 0:02:14.6]} 12... cxd4
{[%clk 0:02:22.4]} 13. cxd4 {[%clk 0:02:14]} 13... Nb4 {[%clk 0:02:21.9]} 14.
Qb3 {[%clk 0:02:10.3]} 14... Rc8 {[%clk 0:02:19.1]} 15. Kf2 {[%clk 0:02:06.4]}
15... Bd6 {[%clk 0:01:45]} 16. a3 {[%clk 0:01:54]} 16... Nc6 {[%clk 0:01:44.9]}
17. Rc1 {[%clk 0:01:32.8]} 17... Ke7 {[%clk 0:01:41.1]} 18. Rg3 {[%clk
0:01:17.1]} 18... Rhg8 {[%clk 0:01:33.5]} 19. Rxg8 {[%clk 0:01:08.9]} 19... Rxg8
{[%clk 0:01:34.4]} 20. Qxb7 {[%clk 0:01:04.4]} 20... Rb8 {[%clk 0:01:30.5]} 21.
Qa6 {[%clk 0:01:04.8]} 21... Rb6 {[%clk 0:01:27]} 22. Qa4 {[%clk 0:00:55]} 22...
Qg7 {[%clk 0:01:01.2]} 23. Qc2 {[%clk 0:00:44.7]} 23... a5 {[%clk 0:01:01.8]}
24. Nb3 {[%clk 0:00:37.6]} 24... Qg6 {[%clk 0:00:53.1]} 25. Bd3 {[%clk
0:00:33.7]} 25... Qg8 {[%clk 0:00:49.5]} 26. Nc5 {[%clk 0:00:33.5]} 26... Qb8
{[%clk 0:00:46.7]} 27. b3 {[%clk 0:00:32.9]} 27... Bxf4 {[%clk 0:00:21.5]} 28.
exf4 {[%clk 0:00:27.6]} 28... Qxf4 {[%clk 0:00:22.4]} 29. Nxd7 {[%clk
0:00:17.9]} 29... Kxd7 {[%clk 0:00:23]} 30. Qc5 {[%clk 0:00:15.3]} 30... Qc7
{[%clk 0:00:11.1]} 31. Bb5 {[%clk 0:00:14.1]} 31... f6 {[%clk 0:00:10.5]} 32.
Bxc6+ {[%clk 0:00:11.9]} 32... Rxc6 {[%clk 0:00:11.4]} 33. Qxc6+ {[%clk
0:00:11.9]} 33... Qxc6 {[%clk 0:00:12.3]} 34. Rxc6 {[%clk 0:00:12.4]} 34... Kxc6
{[%clk 0:00:13.2]} 35. Ke3 {[%clk 0:00:12.8]} 35... Kd6 {[%clk 0:00:13.7]} 36.
Kf4 {[%clk 0:00:11.8]} 1-0

[Event "Early-Titled-Tuesday-Blitz-February-06-2024"]
[Site "Chess.com"]
[Date "2024.02.06"]
[Round "7"]
[White "Nouali_Mohamed"]
[Black "BardArtem"]
[Result "0-1"]
[WhiteElo "2566"]
[BlackElo "2771"]
[TimeControl "180+1"]
[EndTime "9:17:44 PST"]
[Termination "BardArtem won on time"]

1. e4 {[%clk 0:03:00.1]} 1... c5 {[%clk 0:02:58.4]} 2. Nf3 {[%clk 0:03:00.3]}
2... g6 {[%clk 0:02:57.9]} 3. d4 {[%clk 0:03:00.4]} 3... cxd4 {[%clk 0:02:58.8]}
4. Nxd4 {[%clk 0:03:00.6]} 4... d6 {[%clk 0:02:57.9]} 5. Nc3 {[%clk 0:03:00.7]}
5... Nf6 {[%clk 0:02:57.7]} 6. Be3 {[%clk 0:02:59.8]} 6... Nc6 {[%clk
0:02:57.8]} 7. f3 {[%clk 0:02:58.7]} 7... h5 {[%clk 0:02:56.8]} 8. Qd2 {[%clk
0:02:58.1]} 8... Nxd4 {[%clk 0:02:56.6]} 9. Qxd4 {[%clk 0:02:49.9]} 9... Bg7
{[%clk 0:02:45.2]} 10. O-O-O {[%clk 0:02:47.3]} 10... O-O {[%clk 0:02:33.2]} 11.
Qd2 {[%clk 0:02:37.6]} 11... Be6 {[%clk 0:02:32]} 12. Kb1 {[%clk 0:02:25.4]}
12... a6 {[%clk 0:02:24.1]} 13. Bd4 {[%clk 0:02:16.8]} 13... b5 {[%clk
0:02:22.5]} 14. h3 {[%clk 0:01:40.5]} 14... h4 {[%clk 0:02:15.1]} 15. Qg5 {[%clk
0:01:18.6]} 15... Rc8 {[%clk 0:02:05.3]} 16. Bd3 {[%clk 0:01:11.7]} 16... Qa5
{[%clk 0:02:02.9]} 17. Nd5 {[%clk 0:01:03.6]} 17... Bxd5 {[%clk 0:01:45.4]} 18.
exd5 {[%clk 0:01:02.9]} 18... b4 {[%clk 0:01:24.3]} 19. Qxh4 {[%clk 0:00:45.4]}
19... Nxd5 {[%clk 0:01:21.1]} 20. Bxg7 {[%clk 0:00:26.7]} 20... Kxg7 {[%clk
0:01:22]} 21. Bc4 {[%clk 0:00:25.6]} 21... Ne3 {[%clk 0:01:01.4]} 22. Qd4+
{[%clk 0:00:09.7]} 22... Qe5 {[%clk 0:01:01.5]} 23. Qxe5+ {[%clk 0:00:06.7]}
23... dxe5 {[%clk 0:01:02.4]} 24. Bxa6 {[%clk 0:00:07.6]} 24... Ra8 {[%clk
0:01:00.2]} 25. Bd3 {[%clk 0:00:03.9]} 25... Nxd1 {[%clk 0:01:00]} 26. Rxd1
{[%clk 0:00:04.8]} 26... Rfd8 {[%clk 0:00:59.8]} 27. Re1 {[%clk 0:00:05.1]}
27... Kf6 {[%clk 0:00:59.3]} 28. Re4 {[%clk 0:00:04.7]} 28... Rd4 {[%clk
0:00:58.7]} 29. Re1 {[%clk 0:00:03.2]} 29... e6 {[%clk 0:00:56.2]} 30. b3 {[%clk
0:00:03.4]} 30... Rd7 {[%clk 0:00:55.9]} 31. Kb2 {[%clk 0:00:03.8]} 31... Rda7
{[%clk 0:00:55]} 32. Kc1 {[%clk 0:00:02.9]} 32... Rxa2 {[%clk 0:00:54.7]} 33.
Kd2 {[%clk 0:00:03.3]} 33... Ra1 {[%clk 0:00:55.1]} 34. Re4 {[%clk 0:00:03.8]}
34... Rg1 {[%clk 0:00:54.5]} 35. Rxb4 {[%clk 0:00:02.6]} 35... Rxg2+ {[%clk
0:00:54.5]} 36. Kc3 {[%clk 0:00:03.5]} 36... Rf2 {[%clk 0:00:54.2]} 37. Be4
{[%clk 0:00:03.8]} 37... Rh2 {[%clk 0:00:53.8]} 38. Bxa8 {[%clk 0:00:03.6]}
38... Rxh3 {[%clk 0:00:54]} 39. Rb7 {[%clk 0:00:04.2]} 39... Rxf3+ {[%clk
0:00:53.1]} 40. Kb2 {[%clk 0:00:04.7]} 40... Rf4 {[%clk 0:00:45.8]} 41. Rd7
{[%clk 0:00:04.7]} 41... e4 {[%clk 0:00:45.7]} 42. b4 {[%clk 0:00:05.1]} 42...
e3 {[%clk 0:00:46]} 43. Kb3 {[%clk 0:00:05.5]} 43... e2 {[%clk 0:00:44.5]} 0-1

[Event "Early-Titled-Tuesday-Blitz-February-06-2024"]
[Site "Chess.com"]
[Date "2024.02.06"]
[Round "7"]
[White "WindWhistler11"]
[Black "Arystanner"]
[Result "0-1"]
[WhiteElo "2509"]
[BlackElo "2867"]
[TimeControl "180+1"]
[EndTime "9:17:44 PST"]
[Termination "Arystanner won by resignation"]

1. c4 {[%clk 0:03:00.9]} 1... e6 {[%clk 0:03:00.3]} 2. Nf3 {[%clk 0:02:54.4]}
2... d5 {[%clk 0:03:00]} 3. g3 {[%clk 0:02:55.1]} 3... Nf6 {[%clk 0:03:00.3]} 4.
Bg2 {[%clk 0:02:55.1]} 4... Be7 {[%clk 0:03:01.1]} 5. b3 {[%clk 0:02:54]} 5...
O-O {[%clk 0:03:01.5]} 6. Bb2 {[%clk 0:02:54.7]} 6... a5 {[%clk 0:03:00.7]} 7.
Nc3 {[%clk 0:02:48.4]} 7... d4 {[%clk 0:02:52.8]} 8. Nb5 {[%clk 0:02:48.3]} 8...
Nc6 {[%clk 0:02:51]} 9. e3 {[%clk 0:02:47.8]} 9... dxe3 {[%clk 0:02:30.9]} 10.
fxe3 {[%clk 0:02:41.7]} 10... a4 {[%clk 0:02:19.3]} 11. O-O {[%clk 0:02:34.5]}
11... Nb4 {[%clk 0:02:15.2]} 12. bxa4 {[%clk 0:02:26]} 12... c6 {[%clk
0:02:13.5]} 13. Nbd4 {[%clk 0:02:24.2]} 13... Nd3 {[%clk 0:02:13]} 14. Bc3
{[%clk 0:02:23.9]} 14... e5 {[%clk 0:02:12.9]} 15. Ne2 {[%clk 0:02:18.2]} 15...
e4 {[%clk 0:02:12.7]} 16. Ng5 {[%clk 0:02:13.6]} 16... Nc5 {[%clk 0:02:04.7]}
17. a5 {[%clk 0:02:09.7]} 17... h6 {[%clk 0:02:04.9]} 18. Nh3 {[%clk 0:02:03.6]}
18... Be6 {[%clk 0:02:05.1]} 19. Rc1 {[%clk 0:01:55.5]} 19... Nd3 {[%clk
0:01:28.4]} 20. Rc2 {[%clk 0:01:52.8]} 20... Bg4 {[%clk 0:01:17.5]} 21. Nhf4
{[%clk 0:01:50.2]} 21... g5 {[%clk 0:01:14.7]} 22. Nh3 {[%clk 0:01:45.2]} 22...
Nh5 {[%clk 0:01:12.9]} 23. Nf2 {[%clk 0:01:44.3]} 23... Nxf2 {[%clk 0:01:12.4]}
24. Rxf2 {[%clk 0:01:44.5]} 24... Qd3 {[%clk 0:01:09.5]} 25. Bf1 {[%clk
0:01:41.3]} 25... f5 {[%clk 0:01:02.8]} 26. Rb2 {[%clk 0:01:40]} 26... Qd7
{[%clk 0:00:56.7]} 27. Qb3 {[%clk 0:01:37.1]} 27... f4 {[%clk 0:00:20.6]} 28.
Qxb7 {[%clk 0:01:27.6]} 28... f3 {[%clk 0:00:19.2]} 29. Qxd7 {[%clk 0:01:23.7]}
29... Bxd7 {[%clk 0:00:20.1]} 30. Nd4 {[%clk 0:01:21.4]} 30... Nf6 {[%clk
0:00:17.4]} 31. h3 {[%clk 0:01:16.8]} 31... Bd6 {[%clk 0:00:17.9]} 32. c5 {[%clk
0:01:05.5]} 32... Bxg3 {[%clk 0:00:17.2]} 33. Bc4+ {[%clk 0:01:06.2]} 33... Kg7
{[%clk 0:00:16.4]} 34. Rb7 {[%clk 0:01:06.3]} 34... Bxf2+ {[%clk 0:00:16.6]} 35.
Kxf2 {[%clk 0:01:07.2]} 35... Kg6 {[%clk 0:00:17.2]} 36. Nb3 {[%clk 0:01:05.4]}
36... Bxh3 {[%clk 0:00:17.4]} 37. a6 {[%clk 0:01:01.8]} 37... Ng4+ {[%clk
0:00:17.7]} 38. Kg3 {[%clk 0:01:02.4]} 38... Bg2 {[%clk 0:00:15.5]} 39. Rg7+
{[%clk 0:01:00.8]} 39... Kh5 {[%clk 0:00:14.9]} 40. Bf7+ {[%clk 0:00:57.6]}
40... Rxf7 {[%clk 0:00:15.5]} 41. Rxf7 {[%clk 0:00:58.5]} 41... Rxa6 {[%clk
0:00:12]} 42. Na5 {[%clk 0:00:58.3]} 42... Bh1 {[%clk 0:00:07.4]} 43. a3 {[%clk
0:00:56.1]} 43... f2 {[%clk 0:00:08]} 44. Bb4 {[%clk 0:00:55.6]} 44... Bf3
{[%clk 0:00:08]} 45. d3 {[%clk 0:00:35.9]} 45... f1=Q {[%clk 0:00:08]} 0-1

[Event "Early-Titled-Tuesday-Blitz-February-06-2024"]
[Site "Chess.com"]
[Date "2024.02.06"]
[Round "7"]
[White "bteillet"]
[Black "simonachess"]
[Result "1-0"]
[WhiteElo "2164"]
[BlackElo "2311"]
[TimeControl "180+1"]
[EndTime "9:17:45 PST"]
[Termination "bteillet won by resignation"]

1. b4 {[%clk 0:02:54.1]} 1... Nf6 {[%clk 0:02:56.8]} 2. Bb2 {[%clk 0:02:52.1]}
2... g6 {[%clk 0:02:57.2]} 3. c4 {[%clk 0:02:51.2]} 3... Bg7 {[%clk 0:02:57.5]}
4. e3 {[%clk 0:02:51.7]} 4... d6 {[%clk 0:02:58]} 5. Nf3 {[%clk 0:02:51.9]} 5...
O-O {[%clk 0:02:58.2]} 6. d4 {[%clk 0:02:52.3]} 6... a5 {[%clk 0:02:58.7]} 7. b5
{[%clk 0:02:52.3]} 7... b6 {[%clk 0:02:58.3]} 8. Be2 {[%clk 0:02:51.8]} 8...
Nbd7 {[%clk 0:02:57.4]} 9. O-O {[%clk 0:02:52.2]} 9... Bb7 {[%clk 0:02:58]} 10.
Nbd2 {[%clk 0:02:52]} 10... Re8 {[%clk 0:02:58.3]} 11. a4 {[%clk 0:02:52.3]}
11... e5 {[%clk 0:02:56]} 12. dxe5 {[%clk 0:02:52]} 12... dxe5 {[%clk
0:02:53.9]} 13. Qc2 {[%clk 0:02:47.3]} 13... h6 {[%clk 0:02:44.1]} 14. Rad1
{[%clk 0:02:44.5]} 14... Qe7 {[%clk 0:02:42.5]} 15. h3 {[%clk 0:02:34.4]} 15...
Rad8 {[%clk 0:02:41.5]} 16. Nb3 {[%clk 0:02:27.6]} 16... Ne4 {[%clk 0:02:35.1]}
17. Bd3 {[%clk 0:02:19.8]} 17... f5 {[%clk 0:02:33.4]} 18. Rfe1 {[%clk
0:01:59.9]} 18... Nec5 {[%clk 0:02:27.7]} 19. Nxc5 {[%clk 0:01:51.5]} 19... Nxc5
{[%clk 0:02:28.6]} 20. Be2 {[%clk 0:01:48.9]} 20... Bxf3 {[%clk 0:02:28.6]} 21.
Bxf3 {[%clk 0:01:47.9]} 21... e4 {[%clk 0:02:29.2]} 22. Be2 {[%clk 0:01:47.5]}
22... Bxb2 {[%clk 0:02:15.4]} 23. Rxd8 {[%clk 0:01:38.4]} 23... Rxd8 {[%clk
0:02:13.2]} 24. Qxb2 {[%clk 0:01:34.7]} 24... Qg7 {[%clk 0:02:12.8]} 25. Qc2
{[%clk 0:01:30.4]} 25... Rd6 {[%clk 0:01:58.8]} 26. Rd1 {[%clk 0:01:25.1]} 26...
Qd7 {[%clk 0:01:56.5]} 27. h4 {[%clk 0:01:14.5]} 27... Rxd1+ {[%clk 0:01:46.4]}
28. Bxd1 {[%clk 0:01:06.1]} 28... Qd6 {[%clk 0:01:37.7]} 29. h5 {[%clk
0:01:03.7]} 29... g5 {[%clk 0:01:36.4]} 30. Be2 {[%clk 0:01:02.2]} 30... Nd7
{[%clk 0:01:23.5]} 31. Qc3 {[%clk 0:00:55.5]} 31... Ne5 {[%clk 0:01:20.6]} 32.
c5 {[%clk 0:00:42.5]} 32... bxc5 {[%clk 0:01:19.7]} 33. Qxa5 {[%clk 0:00:42.6]}
33... c4 {[%clk 0:01:14.5]} 34. Qa8+ {[%clk 0:00:39.2]} 34... Kg7 {[%clk
0:01:14.9]} 35. Qa5 {[%clk 0:00:32.2]} 35... f4 {[%clk 0:01:09.5]} 36. Qc3
{[%clk 0:00:30]} 36... Qd5 {[%clk 0:00:58.8]} 37. a5 {[%clk 0:00:25.2]} 37... f3
{[%clk 0:00:59.2]} 38. gxf3 {[%clk 0:00:23.6]} 38... exf3 {[%clk 0:00:59.6]} 39.
Bxf3 {[%clk 0:00:23.6]} 39... Qxb5 {[%clk 0:00:51.4]} 40. a6 {[%clk 0:00:23.9]}
40... Kf8 {[%clk 0:00:42.3]} 41. Bb7 {[%clk 0:00:21.8]} 41... g4 {[%clk
0:00:34.1]} 42. Qd4 {[%clk 0:00:19.9]} 42... Nf3+ {[%clk 0:00:33.9]} 43. Bxf3
{[%clk 0:00:18.8]} 43... gxf3 {[%clk 0:00:34.3]} 44. a7 {[%clk 0:00:18.9]} 44...
Qxh5 {[%clk 0:00:28.6]} 45. a8=Q+ {[%clk 0:00:17]} 45... Kf7 {[%clk 0:00:29.1]}
46. Qf4+ {[%clk 0:00:15.9]} 46... Ke7 {[%clk 0:00:29.3]} 47. Qae4+ {[%clk
0:00:14.8]} 47... Kd7 {[%clk 0:00:29.2]} 48. Qff5+ {[%clk 0:00:15.3]} 1-0